fUSD/lending_fUSD_20260606
["ID","MTS","AMOUNT","RATE_DAILY","PERIOD"]
[424308784,1780761041000,-500.0,0.00013698,2]
[424308779,1780761041000,-500.0,0.00013698,2]
[424308786,1780761041000,-500.0,0.00013698,2]
[424308780,1780761041000,-500.0,0.00013698,2]
[424308782,1780761041000,-500.0,0.00013698,2]
[424308781,1780761041000,-500.0,0.00013698,2]
[424308783,1780761041000,-500.0,0.00013698,2]
[424308795,1780761041000,-500.0,0.00013698,2]
[424308787,1780761041000,-257.3388504,0.00013698,2]
[424308796,1780761041000,-500.0,0.00013698,2]
[424308797,1780761041000,-500.0,0.00013698,2]
[424308788,1780761041000,-500.0,0.00013698,2]
[424308794,1780761041000,-500.0,0.00013698,2]
[424308798,1780761041000,-500.0,0.00013698,2]
[424308789,1780761041000,-500.0,0.00013698,2]
[424308799,1780761041000,-500.0,0.00013698,2]
[424308790,1780761041000,-457.12873569,0.00013698,2]
[424308792,1780761041000,-500.0,0.00013698,2]
[424308791,1780761041000,-500.0,0.00013698,2]
[424308793,1780761041000,-500.0,0.00013698,2]
[424308800,1780761041000,-500.0,0.00013698,2]
[424308804,1780761041000,-500.0,0.00013698,2]
[424308803,1780761041000,-500.0,0.00013698,2]
[424308801,1780761041000,-500.0,0.00013698,2]
[424308802,1780761041000,-500.0,0.00013698,2]
[424308805,1780761041000,-500.0,0.00013698,2]
[424308807,1780761041000,-517.63739233,0.00013698,2]
[424308747,1780761041000,-731.42,0.00013698,2]
[424308776,1780761041000,-500.0,0.00013698,2]
[424308778,1780761041000,-500.0,0.00013698,2]
[424308806,1780761041000,-500.0,0.00013698,2]
[424308775,1780761041000,-513.66,0.00013698,2]
[424308777,1780761041000,-500.0,0.00013698,2]
[424308743,1780761041000,-564.02,0.00013698,2]
[424308749,1780761041000,-731.42,0.00013698,2]
[424308757,1780761041000,-731.42,0.00013698,2]
[424308748,1780761041000,-731.42,0.00013698,2]
[424308760,1780761041000,-500.45399039,0.00013698,2]
[424308759,1780761041000,-513.66,0.00013698,2]
[424308758,1780761041000,-500.0,0.00013698,2]
[424308753,1780761041000,-731.42,0.00013698,2]
[424308752,1780761041000,-513.66,0.00013698,2]
[424308750,1780761041000,-513.66,0.00013698,2]
[424308756,1780761041000,-500.0,0.00013698,2]
[424308754,1780761041000,-513.66,0.00013698,2]
[424308755,1780761041000,-731.42,0.00013698,2]
[424308746,1780761041000,-564.02,0.00013698,2]
[424308761,1780761041000,-513.66,0.00013698,2]
[424308751,1780761041000,-731.42,0.00013698,2]
[424308766,1780761041000,-731.42,0.00013698,2]
[424308769,1780761041000,-513.66,0.00013698,2]
[424308770,1780761041000,-513.66,0.00013698,2]
[424308765,1780761041000,-513.66,0.00013698,2]
[424308762,1780761041000,-731.42,0.00013698,2]
[424308774,1780761041000,-513.66,0.00013698,2]
[424308767,1780761041000,-513.66,0.00013698,2]
[424308772,1780761041000,-513.66,0.00013698,2]
[424308773,1780761041000,-513.66,0.00013698,2]
[424308768,1780761041000,-731.42,0.00013698,2]
[424308763,1780761041000,-731.42,0.00013698,2]
[424308764,1780761041000,-731.42,0.00013698,2]
[424308771,1780761041000,-731.42,0.00013698,2]
[424308844,1780761042000,-1016.99,0.00013698,2]
[424308843,1780761042000,-500.0,0.00013698,2]
[424308845,1780761042000,-500.0,0.00013698,2]
[424308847,1780761042000,-1016.99,0.00013698,2]
[424308838,1780761042000,-1016.99,0.00013698,2]
[424308842,1780761042000,-1016.99,0.00013698,2]
[424308841,1780761042000,-500.0,0.00013698,2]
[424308849,1780761042000,-500.0,0.00013698,2]
[424308851,1780761042000,-500.0,0.00013698,2]
[424308848,1780761042000,-500.0,0.00013698,2]
[424308846,1780761042000,-500.0,0.00013698,2]
[424308840,1780761042000,-1016.99,0.00013698,2]
[424308856,1780761042000,-3923.55,0.00013699,2]
[424308850,1780761042000,-1016.99,0.00013698,2]
[424308853,1780761042000,-1016.99,0.00013698,2]
[424308860,1780761042000,-721.84,0.00013699,2]
[424308852,1780761042000,-500.0,0.00013698,2]
[424308854,1780761042000,-1016.99,0.00013698,2]
[424308859,1780761042000,-2500.0,0.00013699,2]
[424308855,1780761042000,-500.0,0.00013698,2]
[424308858,1780761042000,-166.66,0.00013699,2]
[424308857,1780761042000,-200.0,0.00013699,2]
[424308862,1780761042000,-500.0,0.00013699,2]
[424308872,1780761042000,-500.0,0.00013699,2]
[424308839,1780761042000,-1016.99,0.00013698,2]
[424308863,1780761042000,-500.0,0.00013699,2]
[424308861,1780761042000,-506.68,0.00013699,2]
[424308837,1780761042000,-1016.99,0.00013698,2]
[424308822,1780761042000,-593.82,0.00013698,2]
[424308835,1780761042000,-1016.99,0.00013698,2]
[424308864,1780761042000,-500.0,0.00013699,2]
[424308808,1780761042000,-167.0,0.00013698,2]
[424308811,1780761042000,-167.0,0.00013698,2]
[424308809,1780761042000,-167.0,0.00013698,2]
[424308810,1780761042000,-167.0,0.00013698,2]
[424308812,1780761042000,-167.0,0.00013698,2]
[424308813,1780761042000,-167.9548055,0.00013698,2]
[424308814,1780761042000,-500.0,0.00013698,2]
[424308816,1780761042000,-500.0,0.00013698,2]
[424308815,1780761042000,-500.0,0.00013698,2]
[424308819,1780761042000,-593.82,0.00013698,2]
[424308823,1780761042000,-593.82,0.00013698,2]
[424308824,1780761042000,-593.82,0.00013698,2]
[424308821,1780761042000,-593.82,0.00013698,2]
[424308817,1780761042000,-567.64863004,0.00013698,2]
[424308820,1780761042000,-593.82,0.00013698,2]
[424308818,1780761042000,-593.82,0.00013698,2]
[424308826,1780761042000,-593.82,0.00013698,2]
[424308836,1780761042000,-1016.99,0.00013698,2]
[424308825,1780761042000,-593.82,0.00013698,2]
[424308827,1780761042000,-593.82,0.00013698,2]
[424308830,1780761042000,-593.82,0.00013698,2]
[424308828,1780761042000,-593.82,0.00013698,2]
[424308834,1780761042000,-1016.99,0.00013698,2]
[424308829,1780761042000,-593.82,0.00013698,2]
[424308831,1780761042000,-593.82,0.00013698,2]
[424308832,1780761042000,-593.82,0.00013698,2]
[424308833,1780761042000,-593.82,0.00013698,2]
[424308871,1780761042000,-500.0,0.00013699,2]
[424308870,1780761042000,-500.0,0.00013699,2]
[424308867,1780761042000,-500.0,0.00013699,2]
[424308898,1780761042000,-500.0,0.00013699,2]
[424308903,1780761042000,-500.0,0.00013699,2]
[424308902,1780761042000,-500.0,0.00013699,2]
[424308905,1780761042000,-2222.56187064,0.00013699,2]
[424308900,1780761042000,-500.0,0.00013699,2]
[424308901,1780761042000,-500.0,0.00013699,2]
[424308906,1780761042000,-2222.56187064,0.00013699,2]
[424308908,1780761042000,-2222.56187064,0.00013699,2]
[424308904,1780761042000,-2222.56187064,0.00013699,2]
[424308907,1780761042000,-2222.56187064,0.00013699,2]
[424308910,1780761042000,-2222.56187064,0.00013699,2]
[424308912,1780761042000,-2222.56187064,0.00013699,2]
[424308909,1780761042000,-2222.56187064,0.00013699,2]
[424308911,1780761042000,-2222.56187064,0.00013699,2]
[424308917,1780761042000,-2222.56187064,0.00013699,2]
[424308915,1780761042000,-2222.56187064,0.00013699,2]
[424308916,1780761042000,-2222.56187064,0.00013699,2]
[424308918,1780761042000,-2222.56187064,0.00013699,2]
[424308921,1780761042000,-2222.56187064,0.00013699,2]
[424308920,1780761042000,-2222.56187064,0.00013699,2]
[424308919,1780761042000,-2222.56187064,0.00013699,2]
[424308923,1780761042000,-2222.56187064,0.00013699,2]
[424308924,1780761042000,-2222.56187064,0.00013699,2]
[424308925,1780761042000,-2222.56187064,0.00013699,2]
[424308922,1780761042000,-2222.56187064,0.00013699,2]
[424308926,1780761042000,-2222.56187064,0.00013699,2]
[424308914,1780761042000,-2222.56187064,0.00013699,2]
[424308899,1780761042000,-500.0,0.00013699,2]
[424308913,1780761042000,-2222.56187064,0.00013699,2]
[424308892,1780761042000,-500.0,0.00013699,2]
[424308896,1780761042000,-500.0,0.00013699,2]
[424308866,1780761042000,-500.0,0.00013699,2]
[424308868,1780761042000,-500.0,0.00013699,2]
[424308865,1780761042000,-500.0,0.00013699,2]
[424308869,1780761042000,-500.0,0.00013699,2]
[424308874,1780761042000,-500.0,0.00013699,2]
[424308884,1780761042000,-500.0,0.00013699,2]
[424308885,1780761042000,-500.0,0.00013699,2]
[424308875,1780761042000,-500.0,0.00013699,2]
[424308877,1780761042000,-500.0,0.00013699,2]
[424308876,1780761042000,-500.0,0.00013699,2]
[424308878,1780761042000,-500.0,0.00013699,2]
[424308879,1780761042000,-500.0,0.00013699,2]
[424308882,1780761042000,-500.0,0.00013699,2]
[424308873,1780761042000,-500.0,0.00013699,2]
[424308883,1780761042000,-500.0,0.00013699,2]
[424308891,1780761042000,-500.0,0.00013699,2]
[424308895,1780761042000,-500.0,0.00013699,2]
[424308889,1780761042000,-500.0,0.00013699,2]
[424308897,1780761042000,-500.0,0.00013699,2]
[424308890,1780761042000,-500.0,0.00013699,2]
[424308894,1780761042000,-500.0,0.00013699,2]
[424308893,1780761042000,-500.0,0.00013699,2]
[424308887,1780761042000,-317.34223929,0.00013699,2]
[424308886,1780761042000,-500.0,0.00013699,2]
[424308881,1780761042000,-500.0,0.00013699,2]
[424308880,1780761042000,-500.0,0.00013699,2]
[424308888,1780761042000,-500.0,0.00013699,2]
[424308982,1780761043000,-151.0,0.00014986,2]
[424308965,1780761043000,-69674.51116356,0.00014222,2]
[424308964,1780761043000,-166.66,0.0001411,2]
[424308971,1780761043000,-1672.7364795,0.00014489,2]
[424308969,1780761043000,-564.02,0.00014435,2]
[424308960,1780761043000,-451.0,0.0001399,2]
[424308967,1780761043000,-166.66,0.00014384,2]
[424308962,1780761043000,-250.0,0.00014,2]
[424308963,1780761043000,-276.816485,0.00014077,2]
[424308968,1780761043000,-8834.62377795,0.00014413,2]
[424308961,1780761043000,-459.0,0.0001399,2]
[424308966,1780761043000,-166.66,0.00014247,2]
[424308970,1780761043000,-731.42,0.00014435,2]
[424308972,1780761043000,-161.44312,0.00014817,2]
[424308992,1780761043000,-666.0,0.00014999,2]
[424308986,1780761043000,-453.0,0.00014999,2]
[424308976,1780761043000,-801.11124635,0.0001497,2]
[424308973,1780761043000,-160.8907078,0.00014961,2]
[424308975,1780761043000,-150.0,0.00014961,2]
[424308974,1780761043000,-155.4453539,0.00014961,2]
[424308978,1780761043000,-1000.0,0.0001497,2]
[424308981,1780761043000,-151.0,0.00014986,2]
[424308980,1780761043000,-1300.0,0.0001497,2]
[424308977,1780761043000,-500.0,0.0001497,2]
[424308979,1780761043000,-1000.0,0.0001497,2]
[424308989,1780761043000,-300.0,0.00014999,2]
[424308988,1780761043000,-300.0,0.00014999,2]
[424308959,1780761043000,-40250.73951665,0.0001399,2]
[424308984,1780761043000,-458.0,0.00014999,2]
[424308956,1780761043000,-2200.0,0.000139,5]
[424308928,1780761043000,-2222.56187064,0.00013699,2]
[424308954,1780761043000,-166.66,0.00013836,2]
[424308933,1780761043000,-2222.56187064,0.00013699,2]
[424308990,1780761043000,-300.0,0.00014999,2]
[424308927,1780761043000,-2222.56187064,0.00013699,2]
[424308930,1780761043000,-2222.56187064,0.00013699,2]
[424308931,1780761043000,-2222.56187064,0.00013699,2]
[424308929,1780761043000,-2222.56187064,0.00013699,2]
[424308934,1780761043000,-2222.56187064,0.00013699,2]
[424308936,1780761043000,-2222.56187064,0.00013699,2]
[424308937,1780761043000,-2222.56187064,0.00013699,2]
[424308935,1780761043000,-2222.56187064,0.00013699,2]
[424308938,1780761043000,-2222.56187064,0.00013699,2]
[424308944,1780761043000,-2222.56187064,0.00013699,2]
[424308943,1780761043000,-2222.56187064,0.00013699,2]
[424308955,1780761043000,-304.03,0.000139,2]
[424308939,1780761043000,-2222.56187064,0.00013699,2]
[424308940,1780761043000,-2222.56187064,0.00013699,2]
[424308942,1780761043000,-2222.56187064,0.00013699,2]
[424308941,1780761043000,-2222.56187064,0.00013699,2]
[424308947,1780761043000,-2222.56187062,0.00013699,2]
[424308946,1780761043000,-2222.56187062,0.00013699,2]
[424308950,1780761043000,-2222.56187062,0.00013699,2]
[424308949,1780761043000,-2222.56187062,0.00013699,2]
[424308948,1780761043000,-2222.56187062,0.00013699,2]
[424308958,1780761043000,-166.66,0.00013973,2]
[424308957,1780761043000,-1613.0535,0.00013941,2]
[424308953,1780761043000,-286.33,0.000138,2]
[424308952,1780761043000,-1422.69,0.000137,2]
[424308951,1780761043000,-2222.56187062,0.00013699,2]
[424308945,1780761043000,-2222.56187062,0.00013699,2]
[424308991,1780761043000,-300.0,0.00014999,2]
[424308932,1780761043000,-2222.56187064,0.00013699,2]
[424308999,1780761043000,-300.0,0.00015,2]
[424309028,1780761043000,-300.0,0.00015621,2]
[424309032,1780761043000,-1422.69,0.000158,2]
[424309029,1780761043000,-666.0,0.00015621,2]
[424309031,1780761043000,-800.00000001,0.000158,2]
[424309036,1780761043000,-500.0,0.00015973,2]
[424309038,1780761043000,-1125.0,0.00016034,2]
[424309026,1780761043000,-300.0,0.00015621,2]
[424309030,1780761043000,-4908.05838593,0.000158,2]
[424309033,1780761043000,-4908.05838593,0.000159,2]
[424309035,1780761043000,-741.60361061,0.00015973,2]
[424309034,1780761043000,-800.00000001,0.000159,2]
[424309039,1780761043000,-4908.05838593,0.000161,2]
[424309051,1780761043000,-4427.4,0.00016438,2]
[424309037,1780761043000,-300.0,0.00016,2]
[424309043,1780761043000,-4908.05838593,0.000163,2]
[424309045,1780761043000,-912.1,0.000163,2]
[424309040,1780761043000,-800.00000001,0.000161,2]
[424309047,1780761043000,-800.00000001,0.000164,2]
[424309044,1780761043000,-800.00000001,0.000163,2]
[424309052,1780761043000,-900.0,0.00016438,2]
[424309046,1780761043000,-4908.05838593,0.000164,2]
[424309053,1780761043000,-174.17404086,0.00016448,2]
[424309042,1780761043000,-1865.36488656,0.00016133,2]
[424309041,1780761043000,-9999.99,0.00016116,2]
[424309049,1780761043000,-500.0,0.00016437,2]
[424309054,1780761043000,-451.10178449,0.00016448,2]
[424309055,1780761043000,-249.0,0.00016555,2]
[424308996,1780761043000,-666.0,0.00014999,2]
[424309048,1780761043000,-500.0,0.00016425,2]
[424309027,1780761043000,-300.0,0.00015621,2]
[424309050,1780761043000,-593.82,0.00016437,2]
[424309024,1780761043000,-300.0,0.00015621,2]
[424309025,1780761043000,-300.0,0.00015621,2]
[424308993,1780761043000,-300.0,0.00014999,2]
[424308995,1780761043000,-300.0,0.00014999,2]
[424308997,1780761043000,-370.36771166,0.00015,2]
[424308994,1780761043000,-300.0,0.00014999,2]
[424309000,1780761043000,-200.0,0.00015,2]
[424309010,1780761043000,-300.0,0.00015181,2]
[424309011,1780761043000,-300.0,0.00015181,2]
[424309005,1780761043000,-515.16798366,0.00015068,2]
[424309003,1780761043000,-500.0,0.00015068,2]
[424309006,1780761043000,-575.83991834,0.00015068,2]
[424309012,1780761043000,-676.50366034,0.00015181,2]
[424309001,1780761043000,-1734.62772924,0.00015037,2]
[424309009,1780761043000,-300.0,0.00015181,2]
[424308998,1780761043000,-246.91180778,0.00015,2]
[424309002,1780761043000,-900.0,0.00015068,2]
[424309004,1780761043000,-500.0,0.00015068,2]
[424309022,1780761043000,-1798.80895522,0.00015585,2]
[424309020,1780761043000,-250.0,0.00015521,2]
[424309019,1780761043000,-622.26019783,0.00015521,2]
[424309017,1780761043000,-500.0,0.00015521,2]
[424309021,1780761043000,-31049.74180652,0.00015548,2]
[424309014,1780761043000,-300.0,0.00015181,2]
[424309016,1780761043000,-666.0,0.00015181,2]
[424309007,1780761043000,-527.52872621,0.00015068,2]
[424309018,1780761043000,-500.0,0.00015521,2]
[424309008,1780761043000,-300.0,0.00015181,2]
[424309023,1780761043000,-300.0,0.00015621,2]
[424309013,1780761043000,-300.0,0.00015181,2]
[424309015,1780761043000,-300.0,0.00015181,2]
[424309099,1780761044000,-151.0,0.00017777,2]
[424309065,1780761044000,-2017.01286119,0.0001679,2]
[424309074,1780761044000,-1580.84364274,0.00017231,2]
[424309084,1780761044000,-1580.84364274,0.00017734,2]
[424309089,1780761044000,-151.0,0.00017777,2]
[424309091,1780761044000,-151.0,0.00017777,2]
[424309100,1780761044000,-151.0,0.00017777,2]
[424309097,1780761044000,-151.0,0.00017777,2]
[424309090,1780761044000,-151.0,0.00017777,2]
[424309092,1780761044000,-151.0,0.00017777,2]
[424309072,1780761044000,-3014.734436,0.00017127,2]
[424309076,1780761044000,-1422.69,0.000173,2]
[424309102,1780761044000,-500.0,0.00017781,2]
[424309098,1780761044000,-151.0,0.00017777,2]
[424309095,1780761044000,-151.0,0.00017777,2]
[424309093,1780761044000,-151.0,0.00017777,2]
[424309094,1780761044000,-151.0,0.00017777,2]
[424309111,1780761044000,-199.14744625,0.00018,2]
[424309110,1780761044000,-721.33064448,0.00018,2]
[424309112,1780761044000,-350.0,0.00018,2]
[424309101,1780761044000,-151.0,0.00017777,2]
[424309104,1780761044000,-1580.84364274,0.00017866,2]
[424309066,1780761044000,-200.0,0.000168,3]
[424309103,1780761044000,-200.0,0.00017862,2]
[424309096,1780761044000,-151.0,0.00017777,2]
[424309083,1780761044000,-1580.84364274,0.00017598,2]
[424309077,1780761044000,-1580.84364274,0.00017322,2]
[424309080,1780761044000,-1580.84364274,0.00017364,2]
[424309106,1780761044000,-1580.84364274,0.000179,2]
[424309058,1780761044000,-69674.51116356,0.00016696,2]
[424309059,1780761044000,-4908.05838593,0.000167,2]
[424309060,1780761044000,-168.33,0.00016712,2]
[424309056,1780761044000,-4908.05838593,0.000166,2]
[424309061,1780761044000,-281.8,0.00016767,2]
[424309062,1780761044000,-500.0,0.0001679,2]
[424309063,1780761044000,-500.0,0.0001679,2]
[424309057,1780761044000,-1934.38338736,0.00016681,2]
[424309064,1780761044000,-500.0,0.0001679,2]
[424309067,1780761044000,-500.0,0.00016877,2]
[424309087,1780761044000,-151.0,0.00017777,2]
[424309070,1780761044000,-8835.68623429,0.00017056,2]
[424309069,1780761044000,-4908.05838593,0.000169,2]
[424309079,1780761044000,-1580.84364274,0.00017349,2]
[424309078,1780761044000,-500.0,0.00017329,2]
[424309081,1780761044000,-1580.84364274,0.00017564,2]
[424309068,1780761044000,-1125.0,0.00016878,2]
[424309075,1780761044000,-4908.05838593,0.000173,2]
[424309073,1780761044000,-2005.9555727,0.00017229,2]
[424309082,1780761044000,-1580.84364274,0.00017568,2]
[424309086,1780761044000,-31049.74180652,0.00017769,2]
[424309085,1780761044000,-1125.0,0.00017766,2]
[424309071,1780761044000,-4908.05838593,0.000171,2]
[424309088,1780761044000,-151.0,0.00017777,2]
[424309105,1780761044000,-1580.84364274,0.00017867,2]
[424309107,1780761044000,-1580.84364274,0.00017915,2]
[424309155,1780761044000,-300.0,0.00019999,2]
[424309143,1780761044000,-500.0,0.00019591,2]
[424309144,1780761044000,-500.0,0.00019591,2]
[424309150,1780761044000,-31049.74180652,0.0001999,2]
[424309148,1780761044000,-276.89,0.00019847,2]
[424309146,1780761044000,-1125.0,0.00019685,2]
[424309147,1780761044000,-738.33,0.00019798,2]
[424309142,1780761044000,-500.0,0.00019591,2]
[424309145,1780761044000,-2000.0,0.00019591,2]
[424309149,1780761044000,-373.9,0.00019847,2]
[424309151,1780761044000,-564.02,0.00019998,2]
[424309153,1780761044000,-300.0,0.00019999,2]
[424309163,1780761044000,-593.82,0.00019999,2]
[424309159,1780761044000,-500.0,0.00019999,2]
[424309154,1780761044000,-333.29788241,0.00019999,2]
[424309162,1780761044000,-500.0,0.00019999,2]
[424309157,1780761044000,-300.0,0.00019999,2]
[424309156,1780761044000,-300.0,0.00019999,2]
[424309160,1780761044000,-689.93,0.00019999,2]
[424309158,1780761044000,-300.0,0.00019999,2]
[424309161,1780761044000,-513.66,0.00019999,2]
[424309152,1780761044000,-731.42,0.00019998,2]
[424309164,1780761044000,-1016.99,0.00019999,2]
[424309165,1780761044000,-404.0,0.0002,2]
[424309108,1780761044000,-1580.84364274,0.00017932,2]
[424309166,1780761044000,-1303.05807584,0.0002,2]
[424309138,1780761044000,-69674.51116356,0.00019171,2]
[424309139,1780761044000,-839.06718577,0.00019178,2]
[424309141,1780761044000,-2000.0,0.00019266,7]
[424309137,1780761044000,-593.82,0.0001917,2]
[424309109,1780761044000,-880.33379764,0.00018,2]
[424309113,1780761044000,-1580.84364274,0.00018083,2]
[424309114,1780761044000,-1580.84364274,0.00018103,2]
[424309115,1780761044000,-880.33379764,0.000182,2]
[424309116,1780761044000,-721.33064448,0.000182,2]
[424309123,1780761044000,-225.55089225,0.00018389,2]
[424309118,1780761044000,-500.0,0.00018233,2]
[424309140,1780761044000,-20453.62,0.00019178,2]
[424309119,1780761044000,-1580.84364274,0.00018252,2]
[424309124,1780761044000,-880.33379764,0.000184,2]
[424309117,1780761044000,-199.14744625,0.000182,2]
[424309120,1780761044000,-1580.84364274,0.00018259,2]
[424309122,1780761044000,-8834.62377795,0.0001832,2]
[424309121,1780761044000,-1580.84364274,0.00018261,2]
[424309134,1780761044000,-1125.0,0.00018701,2]
[424309133,1780761044000,-199.14744625,0.000187,2]
[424309136,1780761044000,-500.0,0.0001917,2]
[424309128,1780761044000,-880.33379764,0.000185,2]
[424309125,1780761044000,-721.33064448,0.000184,2]
[424309127,1780761044000,-4427.4,0.0001841,2]
[424309126,1780761044000,-199.14744625,0.000184,2]
[424309130,1780761044000,-199.14744625,0.000185,2]
[424309132,1780761044000,-721.33064448,0.000187,2]
[424309135,1780761044000,-1422.69,0.000189,2]
[424309129,1780761044000,-721.33064448,0.000185,2]
[424309131,1780761044000,-880.33379764,0.000187,2]
[424309204,1780761045000,-379.76203495,0.00020999,2]
[424309214,1780761045000,-873.0,0.00021,2]
[424309210,1780761045000,-404.0,0.00021,2]
[424309211,1780761045000,-945.9932416,0.00021,2]
[424309206,1780761045000,-300.0,0.00020999,2]
[424309209,1780761045000,-731.42,0.00020999,2]
[424309179,1780761045000,-675.0,0.0002,2]
[424309212,1780761045000,-2242.0,0.00021,2]
[424309190,1780761045000,-14841.77,0.0002,2]
[424309186,1780761045000,-12584.59,0.0002,2]
[424309191,1780761045000,-1576.68,0.0002,2]
[424309207,1780761045000,-300.0,0.00020999,2]
[424309205,1780761045000,-300.0,0.00020999,2]
[424309213,1780761045000,-404.0,0.00021,2]
[424309219,1780761045000,-6111.0,0.00021,2]
[424309208,1780761045000,-564.02,0.00020999,2]
[424309216,1780761045000,-15000.0,0.00021,2]
[424309218,1780761045000,-15000.0,0.00021,2]
[424309222,1780761045000,-1092.0,0.00021,2]
[424309220,1780761045000,-1042.263907,0.00021,2]
[424309223,1780761045000,-675.0,0.00021,2]
[424309227,1780761045000,-585.0,0.00021,2]
[424309224,1780761045000,-2972.0,0.00021,2]
[424309225,1780761045000,-4110.0,0.00021,2]
[424309226,1780761045000,-948.0,0.00021,2]
[424309221,1780761045000,-936.0,0.00021,2]
[424309228,1780761045000,-4082.0,0.00021,2]
[424309217,1780761045000,-6111.0,0.00021,2]
[424309182,1780761045000,-948.0,0.0002,2]
[424309215,1780761045000,-244.0,0.00021,2]
[424309198,1780761045000,-1125.0,0.00020722,2]
[424309170,1780761045000,-244.0,0.0002,2]
[424309197,1780761045000,-760.08,0.000206,7]
[424309173,1780761045000,-76715.76223239,0.0002,2]
[424309167,1780761045000,-2242.0,0.0002,2]
[424309176,1780761045000,-986.0,0.0002,2]
[424309172,1780761045000,-1317.0,0.0002,2]
[424309174,1780761045000,-766.0,0.0002,2]
[424309168,1780761045000,-404.0,0.0002,2]
[424309169,1780761045000,-873.0,0.0002,2]
[424309177,1780761045000,-936.0,0.0002,2]
[424309175,1780761045000,-1042.263907,0.0002,2]
[424309171,1780761045000,-400.0,0.0002,2]
[424309178,1780761045000,-1092.0,0.0002,2]
[424309188,1780761045000,-585.0,0.0002,2]
[424309185,1780761045000,-12584.59,0.0002,2]
[424309195,1780761045000,-1303.05807584,0.000204,2]
[424309189,1780761045000,-4082.0,0.0002,2]
[424309180,1780761045000,-2972.0,0.0002,2]
[424309202,1780761045000,-173.22755412,0.00020964,2]
[424309193,1780761045000,-4427.4,0.00020381,2]
[424309196,1780761045000,-1303.05807584,0.000206,2]
[424309181,1780761045000,-4110.0,0.0002,2]
[424309192,1780761045000,-1303.05807584,0.000202,2]
[424309201,1780761045000,-4141.89416048,0.00020963,2]
[424309199,1780761045000,-1303.05807584,0.000208,2]
[424309184,1780761045000,-12584.59,0.0002,2]
[424309200,1780761045000,-1000.0,0.00020893,2]
[424309183,1780761045000,-12584.59,0.0002,2]
[424309194,1780761045000,-500.0,0.00020384,2]
[424309203,1780761045000,-300.0,0.00020999,2]
[424309187,1780761045000,-12584.6,0.0002,2]
[424309230,1780761045000,-945.9932416,0.000212,2]
[424309294,1780761045000,-500.0,0.00021999,2]
[424309241,1780761045000,-5000.0,0.00021375,2]
[424309260,1780761045000,-348.36899443,0.00021788,2]
[424309265,1780761045000,-200.0,0.00021895,2]
[424309270,1780761045000,-500.0,0.00021999,2]
[424309281,1780761045000,-500.0,0.00021999,2]
[424309278,1780761045000,-500.0,0.00021999,2]
[424309275,1780761045000,-500.0,0.00021999,2]
[424309280,1780761045000,-500.0,0.00021999,2]
[424309274,1780761045000,-500.0,0.00021999,2]
[424309272,1780761045000,-500.0,0.00021999,2]
[424309282,1780761045000,-500.0,0.00021999,2]
[424309276,1780761045000,-500.0,0.00021999,2]
[424309271,1780761045000,-500.0,0.00021999,2]
[424309273,1780761045000,-500.0,0.00021999,2]
[424309259,1780761045000,-351.80841353,0.00021788,2]
[424309277,1780761045000,-500.0,0.00021999,2]
[424309284,1780761045000,-500.0,0.00021999,2]
[424309288,1780761045000,-500.0,0.00021999,2]